[Event "The Schackveckan 2023: Chessweek Elo-tournaments Group 1"]
[Site "Göteborgs schackcentrum, Vegagatan 20, Gothenburg, Sweden"]
[Date "2023.08.10"]
[Round "6.4"]
[White "Harila, Per"]
[Black "Frisk, Anders"]
[Result "1/2-1/2"]
[TimeControl "90 minutes for 40 moves + 30 minutes for the rest of the game + 30 seconds per move from move one."]
[WhiteFideId "1707248"]
[BlackFideId "1718797"]
[WhiteElo "2016"]
[BlackElo "1808"]

1. d4 {[%clk 01:30:59]} f5 {[%clk 01:30:54]} {[%emt 00:00:07]} 2. Nf3 {[%clk
01:31:19]} {[%emt 00:00:10]} Nf6 {[%clk 01:30:43]} {[%emt 00:00:40]} 3. g3
{[%clk 01:31:01]} {[%emt 00:00:49]} g6 {[%clk 01:31:05]} {[%emt 00:00:07]} 4.
Bg2 {[%clk 01:31:24]} {[%emt 00:00:07]} Bg7 {[%clk 01:31:24]} {[%emt 00:00:12]}
5. O-O {[%clk 01:31:17]} {[%emt 00:00:37]} O-O {[%clk 01:31:36]} {[%emt
00:00:17]} 6. c3 {[%clk 01:31:41]} {[%emt 00:00:07]} c6 {[%clk 01:27:53]}
{[%emt 00:04:12]} 7. Nbd2 {[%clk 01:31:29]} {[%emt 00:00:42]} d5 {[%clk
01:23:53]} {[%emt 00:04:30]} 8. Ne5 {[%clk 01:31:36]} {[%emt 00:00:24]} Nbd7
{[%clk 01:22:28]} {[%emt 00:01:55]} 9. Ndf3 {[%clk 01:31:56]} {[%emt 00:00:09]}
Nxe5 {[%clk 01:20:34]} {[%emt 00:02:25]} 10. Nxe5 {[%clk 01:30:16]} {[%emt
00:02:09]} Nd7 {[%clk 01:18:23]} {[%emt 00:02:41]} 11. f4 {[%clk 01:28:57]}
{[%emt 00:01:49]} Nxe5 {[%clk 01:15:59]} {[%emt 00:02:54]} 12. fxe5 {[%clk
01:29:19]} {[%emt 00:00:07]} e6 {[%clk 01:14:26]} {[%emt 00:02:04]} 13. Qb3
{[%clk 01:26:39]} {[%emt 00:03:09]} b5 {[%clk 01:06:35]} {[%emt 00:08:22]} 14.
a4 {[%clk 01:24:47]} {[%emt 00:02:23]} Qb6 {[%clk 01:03:52]} {[%emt 00:03:12]}
15. axb5 {[%clk 01:24:36]} {[%emt 00:00:41]} Rb8 {[%clk 01:00:23]} {[%emt
00:03:59]} 16. Bg5 {[%clk 01:15:00]} {[%emt 00:10:05]} Re8 {[%clk 00:54:56]}
{[%emt 00:05:58]} 17. Kh1 {[%clk 01:13:19]} {[%emt 00:02:11]} cxb5 {[%clk
00:54:19]} {[%emt 00:01:08]} 18. Qb4 {[%clk 01:12:56]} {[%emt 00:00:52]} Bf8
{[%clk 00:51:45]} {[%emt 00:03:04]} 19. Qa5 {[%clk 01:12:54]} {[%emt 00:00:30]}
a6 {[%clk 00:49:55]} {[%emt 00:02:23]} 20. Rfc1 {[%clk 01:09:03]} {[%emt
00:04:20]} Be7 {[%clk 00:48:40]} {[%emt 00:01:45]} 21. Bxe7 {[%clk 01:06:21]}
{[%emt 00:03:12]} Rxe7 {[%clk 00:49:01]} {[%emt 00:00:10]} 22. Qxb6 {[%clk
01:06:45]} {[%emt 00:00:05]} Rxb6 {[%clk 00:49:19]} {[%emt 00:00:12]} 23. b4
{[%clk 01:06:49]} {[%emt 00:00:26]} Rc7 {[%clk 00:47:06]} {[%emt 00:02:43]} 24.
Rab1 {[%clk 01:00:06]} {[%emt 00:07:13]} Rbc6 {[%clk 00:44:28]} {[%emt
00:03:08]} 25. Rb3 {[%clk 01:00:25]} {[%emt 00:00:11]} Rc4 {[%clk 00:41:02]}
{[%emt 00:03:56]} 26. e3 {[%clk 01:00:43]} {[%emt 00:00:12]} Kg7 {[%clk
00:34:38]} {[%emt 00:06:54]} 27. Bf1 {[%clk 01:00:51]} {[%emt 00:00:22]} R4c6
{[%clk 00:34:53]} {[%emt 00:00:15]} 28. Kg2 {[%clk 01:01:01]} {[%emt 00:00:19]}
Bd7 {[%clk 00:32:58]} {[%emt 00:02:26]} 29. Kf2 {[%clk 01:01:05]} {[%emt
00:00:27]} g5 {[%clk 00:32:03]} {[%emt 00:01:24]} 30. Be2 {[%clk 01:00:55]}
{[%emt 00:00:39]} Kg6 {[%clk 00:31:37]} {[%emt 00:00:57]} 31. Ke1 {[%clk
01:00:59]} {[%emt 00:00:26]} Bc8 {[%clk 00:30:30]} {[%emt 00:01:37]} 32. Kd2
{[%clk 01:01:16]} {[%emt 00:00:13]} h5 {[%clk 00:29:19]} {[%emt 00:01:41]} 33.
h3 {[%clk 01:00:52]} {[%emt 00:00:54]} Rf7 {[%clk 00:25:23]} {[%emt 00:04:26]}
34. Rf1 {[%clk 01:00:59]} {[%emt 00:00:21]} Bd7 {[%clk 00:24:02]} {[%emt
00:01:54]} 35. Rbb1 {[%clk 01:00:56]} {[%emt 00:00:31]} Bc8 {[%clk 00:23:59]}
{[%emt 00:00:34]} 36. Bd3 {[%clk 01:00:11]} {[%emt 00:01:15]} g4 {[%clk
00:22:15]} {[%emt 00:02:14]} 37. hxg4 {[%clk 01:00:26]} {[%emt 00:00:16]} hxg4
{[%clk 00:22:30]} {[%emt 00:00:14]} 38. Rh1 {[%clk 01:00:01]} {[%emt 00:00:55]}
Rh7 {[%clk 00:18:51]} {[%emt 00:04:10]} 39. Rxh7 {[%clk 01:00:09]} {[%emt
00:00:21]} Kxh7 {[%clk 00:19:16]} {[%emt 00:00:05]} 40. Rh1+ {[%clk 01:00:31]}
{[%emt 00:00:08]} Kg7 {[%clk 00:19:25]} {[%emt 00:00:21]} 41. Rh5 {[%clk
00:58:54]} {[%emt 00:02:05]} Bd7 {[%clk 00:16:06]} {[%emt 00:04:35]} 42. Rg5+
{[%clk 00:56:53]} {[%emt 00:02:29]} Kf7 {[%clk 00:15:01]} {[%emt 00:01:37]} 43.
Rh5 {[%clk 00:51:03]} {[%emt 00:06:20]} Kg7 {[%clk 00:14:38]} {[%emt 00:00:52]}
44. Rh1 {[%clk 00:50:28]} {[%emt 00:01:05]} Bc8 {[%clk 00:11:01]} {[%emt
00:04:08]} 45. Ra1 {[%clk 00:50:33]} {[%emt 00:00:24]} Rc7 {[%clk 00:09:46]}
{[%emt 00:01:45]} 46. Rh1 {[%clk 00:49:52]} {[%emt 00:01:11]} Kg8 {[%clk
00:08:44]} {[%emt 00:01:31]} 47. Rh4 {[%clk 00:48:16]} {[%emt 00:02:06]} Rh7
{[%clk 00:03:42]} {[%emt 00:05:33]} 48. Ke2 {[%clk 00:32:00]} {[%emt 00:16:46]}
Kg7 {[%clk 00:29:11]} {[%emt 00:05:01]} 49. Kf2 {[%clk 01:02:15]} {[%emt
00:00:15]} Bd7 {[%clk 00:28:38]} {[%emt 00:01:04]} 50. Bc2 {[%clk 01:02:17]}
{[%emt 00:00:27]} Rh6 {[%clk 00:26:23]} {[%emt 00:02:46]} 51. Bb1 {[%clk
01:01:31]} {[%emt 00:01:16]} Rh8 {[%clk 00:25:40]} {[%emt 00:01:13]} 52. Rxh8
{[%emt 00:00:46]} 1/2-1/2

[Event "The Schackveckan 2023: Chessweek Elo-tournaments Group 1"]
[Site "Göteborgs schackcentrum, Vegagatan 20, Gothenburg, Sweden"]
[Date "2023.08.11"]
[Round "7.1"]
[White "Pettersson, Anders 1981"]
[Black "Harila, Per"]
[Result "1-0"]
[TimeControl "90 minutes for 40 moves + 30 minutes for the rest of the game + 30 seconds per move from move one."]
[WhiteFideId "1715143"]
[BlackFideId "1707248"]
[WhiteElo "2003"]
[BlackElo "2016"]

1. d4 {[%clk 01:30:55]} {[%emt 00:00:05]} d6 {[%clk 01:30:49]} {[%emt
00:00:12]} 2. Nc3 {[%clk 01:30:36]} {[%emt 00:00:47]} e6 {[%clk 01:26:07]}
{[%emt 00:05:14]} 3. e4 {[%clk 01:29:29]} {[%emt 00:01:36]} Nd7 {[%clk
01:24:14]} {[%emt 00:02:23]} 4. Be3 {[%clk 01:27:42]} {[%emt 00:02:17]} b6
{[%clk 01:24:32]} {[%emt 00:00:13]} 5. f4 {[%clk 01:22:19]} {[%emt 00:05:52]}
Bb7 {[%clk 01:24:54]} {[%emt 00:00:08]} 6. Nf3 {[%clk 01:22:38]} {[%emt
00:00:11]} Ne7 {[%clk 01:24:45]} {[%emt 00:00:39]} 7. Qd2 {[%clk 01:14:44]}
{[%emt 00:08:24]} g6 {[%clk 01:24:58]} {[%emt 00:00:17]} 8. O-O-O {[%clk
01:05:56]} {[%emt 00:09:17]} Bg7 {[%clk 01:24:11]} {[%emt 00:01:18]} 9. h4
{[%clk 00:59:08]} {[%emt 00:07:18]} h5 {[%clk 01:24:08]} {[%emt 00:00:34]} 10.
Ng5 {[%clk 00:59:33]} {[%emt 00:00:04]} Nf6 {[%clk 01:22:15]} {[%emt 00:02:24]}
11. d5 {[%clk 00:51:14]} {[%emt 00:08:48]} exd5 {[%clk 01:18:42]} {[%emt
00:04:03]} 12. e5 {[%clk 00:51:13]} {[%emt 00:00:31]} dxe5 {[%clk 01:13:13]}
{[%emt 00:05:59]} 13. fxe5 {[%clk 00:51:37]} {[%emt 00:00:06]} Nh7 {[%clk
01:13:07]} {[%emt 00:00:36]} 14. Bb5+ {[%clk 00:39:57]} {[%emt 00:12:11]} c6
{[%clk 01:12:48]} {[%emt 00:00:49]} 15. Nce4 {[%clk 00:39:26]} {[%emt
00:01:01]} Bxe5 {[%clk 01:10:10]} {[%emt 00:03:07]} 16. Nxh7 {[%clk 00:36:59]}
{[%emt 00:02:57]} Rxh7 {[%clk 01:10:38]} {[%emt 00:00:02]} 17. Ng5 {[%clk
00:37:19]} {[%emt 00:00:10]} Rg7 {[%clk 01:09:39]} {[%emt 00:01:30]} 18. Bd4
{[%clk 00:35:14]} {[%emt 00:02:35]} Qd6 {[%clk 01:09:25]} {[%emt 00:00:43]} 19.
Bxe5 {[%clk 00:34:44]} {[%emt 00:01:00]} Qxe5 {[%clk 01:09:53]} {[%emt
00:00:03]} 20. Rde1 {[%clk 00:27:30]} {[%emt 00:07:44]} Qd6 {[%clk 01:00:12]}
{[%emt 00:10:10]} 21. Qd4 {[%clk 00:27:56]} {[%emt 00:00:04]} Kf8 {[%clk
00:57:25]} {[%emt 00:03:18]} 22. Bd3 {[%clk 00:21:47]} {[%emt 00:06:38]} c5
{[%clk 00:53:38]} {[%emt 00:04:17]} 23. Qf2 {[%clk 00:20:50]} {[%emt 00:01:27]}
c4 {[%clk 00:53:04]} {[%emt 00:01:05]} 24. Ne6+ {[%clk 00:19:13]} {[%emt
00:02:07]} Kg8 {[%clk 00:53:25]} {[%emt 00:00:09]} 25. Nxg7 {[%clk 00:19:27]}
{[%emt 00:00:15]} cxd3 {[%clk 00:53:25]} {[%emt 00:00:30]} 26. Rhf1 {[%clk
00:19:01]} {[%emt 00:00:56]} d2+ {[%clk 00:43:33]} {[%emt 00:10:22]} 27. Kxd2
{[%clk 00:19:15]} {[%emt 00:00:16]} Rf8 {[%clk 00:42:57]} {[%emt 00:01:07]} 28.
Ne6 {[%clk 00:18:10]} {[%emt 00:01:34]} Nf5 {[%clk 00:39:35]} {[%emt 00:03:53]}
29. Nxf8 {[%clk 00:18:31]} {[%emt 00:00:09]} Qxf8 {[%clk 00:39:58]} {[%emt
00:00:06]} 30. c3 {[%clk 00:16:03]} {[%emt 00:02:58]} Ba6 {[%clk 00:39:02]}
{[%emt 00:01:27]} 31. Rg1 {[%clk 00:16:06]} {[%emt 00:00:26]} d4 {[%clk
00:38:40]} {[%emt 00:00:52]} 32. g4 {[%clk 00:13:44]} {[%emt 00:02:52]} dxc3+
{[%clk 00:36:53]} {[%emt 00:02:16]} 33. bxc3 {[%clk 00:13:44]} {[%emt
00:00:31]} Qa3 {[%clk 00:37:03]} {[%emt 00:00:20]} 34. gxf5 {[%clk 00:11:36]}
{[%emt 00:02:38]} Qb2+ {[%clk 00:37:31]} {[%emt 00:00:02]} 35. Ke3 {[%clk
00:11:26]} {[%emt 00:00:40]} Qxc3+ {[%clk 00:37:54]} {[%emt 00:00:07]} 36. Kf4
{[%clk 00:10:43]} {[%emt 00:01:12]} Qc7+ {[%clk 00:36:43]} {[%emt 00:01:42]} 37.
Kg5 {[%clk 00:08:12]} {[%emt 00:03:01]} Qd8+ {[%clk 00:37:10]} {[%emt
00:00:03]} 38. f6 {[%clk 00:05:42]} {[%emt 00:03:00]} Qd5+ {[%clk 00:35:47]}
{[%emt 00:01:51]} 39. Kh6 {[%clk 00:05:38]} {[%emt 00:00:36]} Qd8 {[%clk
00:36:14]} {[%emt 00:00:04]} 40. Qe3 {[%clk 00:02:50]} {[%emt 00:03:17]} Bb5
{[%clk 00:35:48]} {[%emt 00:00:56]} 41. Qe7 {[%clk 00:30:09]} {[%emt 00:03:11]}
1-0

[Event "The Schackveckan 2023: Chessweek Elo-tournaments Group 1"]
[Site "Göteborgs schackcentrum, Vegagatan 20, Gothenburg, Sweden"]
[Date "2023.08.11"]
[Round "7.2"]
[White "Frisk, Anders"]
[Black "Fransson, Lennart"]
[Result "1-0"]
[TimeControl "90 minutes for 40 moves + 30 minutes for the rest of the game + 30 seconds per move from move one."]
[WhiteFideId "1718797"]
[BlackFideId "1706756"]
[WhiteElo "1808"]
[BlackElo "1834"]

1. c4 {[%clk 01:30:58]} {[%emt 00:00:01]} e5 {[%clk 01:29:34]} {[%emt
00:01:26]} 2. Nc3 {[%clk 01:31:20]} {[%emt 00:00:08]} Nc6 {[%clk 01:28:47]}
{[%emt 00:01:16]} 3. g3 {[%clk 01:30:46]} {[%emt 00:01:05]} g6 {[%clk
01:26:09]} {[%emt 00:03:07]} 4. Bg2 {[%clk 01:31:02]} {[%emt 00:00:15]} Bg7
{[%clk 01:26:35]} {[%emt 00:00:03]} 5. e4 {[%clk 01:30:16]} {[%emt 00:01:17]}
d6 {[%clk 01:26:05]} {[%emt 00:01:00]} 6. Nge2 {[%clk 01:29:16]} {[%emt
00:01:30]} f5 {[%clk 01:25:10]} {[%emt 00:01:24]} 7. d3 {[%clk 01:28:02]}
{[%emt 00:01:45]} Nf6 {[%clk 01:22:58]} {[%emt 00:02:42]} 8. O-O {[%clk
01:27:33]} {[%emt 00:01:00]} O-O {[%clk 01:22:05]} {[%emt 00:01:22]} 9. h3
{[%clk 01:25:52]} {[%emt 00:02:11]} Be6 {[%clk 01:12:42]} {[%emt 00:09:53]} 10.
Nd5 {[%clk 01:23:12]} {[%emt 00:03:10]} Qd7 {[%clk 01:09:43]} {[%emt 00:03:28]}
11. exf5 {[%clk 01:10:16]} {[%emt 00:13:27]} Bxf5 {[%clk 01:06:41]} {[%emt
00:03:32]} 12. g4 {[%clk 01:05:27]} {[%emt 00:05:18]} Be6 {[%clk 01:06:36]}
{[%emt 00:00:35]} 13. Nec3 {[%clk 01:00:53]} {[%emt 00:05:05]} Nd8 {[%clk
01:02:57]} {[%emt 00:04:08]} 14. Bg5 {[%clk 00:56:10]} {[%emt 00:05:14]} c6
{[%clk 00:55:18]} {[%emt 00:08:08]} 15. Nxf6+ {[%clk 00:50:31]} {[%emt
00:06:10]} Bxf6 {[%clk 00:55:38]} {[%emt 00:00:09]} 16. Bh6 {[%clk 00:45:16]}
{[%emt 00:05:46]} Re8 {[%clk 00:53:57]} {[%emt 00:02:10]} 17. Ne4 {[%clk
00:41:43]} {[%emt 00:04:04]} Be7 {[%clk 00:47:26]} {[%emt 00:06:59]} 18. Qd2
{[%clk 00:33:34]} {[%emt 00:08:42]} Nf7 {[%clk 00:37:59]} {[%emt 00:09:55]} 19.
Bg5 {[%clk 00:30:30]} {[%emt 00:03:35]} Kg7 {[%clk 00:33:15]} {[%emt 00:05:13]}
20. Bxe7 {[%clk 00:28:25]} {[%emt 00:02:37]} Qxe7 {[%clk 00:31:47]} {[%emt
00:01:58]} 21. f4 {[%emt 00:03:06]} exf4 {[%clk 00:28:30]} {[%emt 00:03:44]} 22.
Rxf4 {[%clk 00:19:14]} {[%emt 00:07:08]} h6 {[%clk 00:25:28]} {[%emt 00:03:32]}
23. Qc3+ {[%clk 00:18:25]} {[%emt 00:01:19]} Ne5 {[%clk 00:23:03]} {[%emt
00:02:55]} 24. d4 {[%clk 00:16:31]} {[%emt 00:02:24]} Bxc4 {[%clk 00:22:08]}
{[%emt 00:01:23]} 25. dxe5 {[%clk 00:14:48]} {[%emt 00:02:15]} dxe5 {[%clk
00:21:42]} {[%emt 00:00:56]} 26. Rf6 {[%clk 00:12:44]} {[%emt 00:02:34]} Bd5
{[%clk 00:21:07]} {[%emt 00:01:04]} 27. Raf1 {[%clk 00:12:10]} {[%emt
00:01:04]} Rf8 {[%clk 00:14:20]} {[%emt 00:07:17]} 28. Rxf8 {[%clk 00:09:18]}
{[%emt 00:03:24]} Rxf8 {[%clk 00:12:49]} {[%emt 00:02:00]} 29. Rxf8 {[%clk
00:09:28]} {[%emt 00:00:20]} Kxf8 {[%clk 00:11:38]} {[%emt 00:01:40]} 30. Qc5
{[%clk 00:07:44]} {[%emt 00:02:15]} b6 {[%clk 00:07:36]} {[%emt 00:04:33]} 31.
Qxe7+ {[%clk 00:07:11]} {[%emt 00:01:03]} Kxe7 {[%clk 00:08:03]} {[%emt
00:00:02]} 32. b3 {[%clk 00:06:52]} {[%emt 00:00:49]} c5 {[%clk 00:07:13]}
{[%emt 00:01:20]} 33. Nd2 {[%clk 00:05:08]} {[%emt 00:02:14]} Ke6 {[%clk
00:04:27]} {[%emt 00:03:15]} 34. Bf1 {[%clk 00:03:26]} {[%emt 00:02:12]} Bb7
{[%clk 00:02:48]} {[%emt 00:02:09]} 35. Kf2 {[%clk 00:03:23]} {[%emt 00:00:34]}
a6 {[%clk 00:03:04]} {[%emt 00:00:15]} 36. Ke3 {[%clk 00:02:15]} {[%emt
00:01:36]} Kd6 {[%clk 00:02:05]} {[%emt 00:01:28]} 37. Nc4+ {[%clk 00:02:00]}
{[%emt 00:00:47]} 1-0

[Event "The Schackveckan 2023: Chessweek Elo-tournaments Group 1"]
[Site "Göteborgs schackcentrum, Vegagatan 20, Gothenburg, Sweden"]
[Date "2023.08.11"]
[Round "7.4"]
[White "Tobiasson, Bjorn"]
[Black "Bengtsson, Jonas"]
[Result "0-1"]
[TimeControl "90 minutes for 40 moves + 30 minutes for the rest of the game + 30 seconds per move from move one."]
[WhiteFideId "1773682"]
[BlackFideId "1715135"]
[WhiteElo "1830"]
[BlackElo "2013"]

1. d4 {[%clk 01:30:58]} {[%emt 00:00:01]} Nf6 {[%clk 01:30:56]} {[%emt
00:00:04]} 2. c4 {[%clk 01:31:20]} {[%emt 00:00:09]} e6 {[%clk 01:31:22]}
{[%emt 00:00:03]} 3. Nf3 {[%clk 01:31:41]} {[%emt 00:00:09]} Bb4+ {[%clk
01:31:47]} {[%emt 00:00:05]} 4. Bd2 {[%clk 01:31:28]} {[%emt 00:00:43]} a5
{[%clk 01:32:12]} {[%emt 00:00:05]} 5. g3 {[%clk 01:23:23]} {[%emt 00:08:36]}
d6 {[%clk 01:31:38]} {[%emt 00:01:03]} 6. Bg2 {[%clk 01:23:24]} {[%emt
00:00:29]} Nbd7 {[%clk 01:32:02]} {[%emt 00:00:07]} 7. O-O {[%clk 01:20:48]}
{[%emt 00:03:06]} e5 {[%clk 01:32:22]} {[%emt 00:00:10]} 8. Qc2 {[%clk
01:17:30]} {[%emt 00:03:48]} O-O {[%clk 01:31:49]} {[%emt 00:01:02]} 9. Bg5
{[%clk 01:14:01]} {[%emt 00:03:59]} exd4 {[%clk 01:31:08]} {[%emt 00:01:10]} 10.
Nxd4 {[%clk 01:12:52]} {[%emt 00:01:40]} h6 {[%clk 01:28:48]} {[%emt 00:02:50]}
11. Bf4 {[%clk 01:08:02]} {[%emt 00:05:20]} Re8 {[%clk 01:27:07]} {[%emt
00:02:11]} 12. Nc3 {[%clk 01:02:02]} {[%emt 00:06:30]} Nb6 {[%clk 01:17:07]}
{[%emt 00:10:30]} 13. Nd5 {[%clk 00:53:46]} {[%emt 00:08:47]} Nbxd5 {[%clk
01:17:06]} {[%emt 00:00:31]} 14. cxd5 {[%clk 00:54:11]} {[%emt 00:00:04]} Bd7
{[%clk 01:15:58]} {[%emt 00:01:38]} 15. Rac1 {[%clk 00:52:10]} {[%emt
00:02:32]} Bc5 {[%clk 01:16:20]} {[%emt 00:00:07]} 16. Nb3 {[%clk 00:45:43]}
{[%emt 00:06:58]} Bb6 {[%clk 01:16:43]} {[%emt 00:00:06]} 17. e4 {[%clk
00:45:21]} {[%emt 00:00:52]} Ng4 {[%clk 01:11:52]} {[%emt 00:05:21]} 18. h3
{[%clk 00:43:26]} {[%emt 00:02:25]} a4 {[%clk 01:10:43]} {[%emt 00:01:39]} 19.
Nd2 {[%clk 00:40:50]} {[%emt 00:03:07]} Nxf2 {[%clk 01:09:57]} {[%emt
00:01:16]} 20. Rxf2 {[%clk 00:40:59]} {[%emt 00:00:21]} g5 {[%clk 01:10:20]}
{[%emt 00:00:06]} 21. Nc4 {[%clk 00:37:06]} {[%emt 00:04:24]} Bxf2+ {[%clk
01:10:23]} {[%emt 00:00:27]} 22. Qxf2 {[%clk 00:37:26]} {[%emt 00:00:10]} gxf4
{[%clk 01:10:47]} {[%emt 00:00:05]} 23. gxf4 {[%clk 00:36:45]} {[%emt
00:01:11]} Qf6 {[%clk 01:06:10]} {[%emt 00:05:07]} 24. Ne3 {[%clk 00:35:01]}
{[%emt 00:02:15]} c6 {[%clk 01:05:32]} {[%emt 00:01:07]} 25. Ng4 {[%clk
00:33:36]} {[%emt 00:01:55]} Bxg4 {[%clk 01:05:54]} {[%emt 00:00:08]} 26. hxg4
{[%clk 00:34:01]} {[%emt 00:00:06]} cxd5 {[%clk 01:06:17]} {[%emt 00:00:06]} 27.
exd5 {[%clk 00:34:06]} {[%emt 00:00:25]} Rac8 {[%clk 01:06:39]} {[%emt
00:00:07]} 0-1